Cogmind - Beta 16.1 @@@ ROGUE MODE // 2026.02.10 @ 07:33:24 Player: Megaknight51 Result: Destroyed by U5-VJL(R) with Subdweller Machine Gun Performance ------------- Evolutions (0) 0 Regions Visited (2) 400 Robots Destroyed (29) 145 Value Destroyed (620) 620 Prototype IDs (13) 260 Alien Tech Used (0) 0 Bonus (0) 0 TOTAL SCORE: 1425 Bonus ------- None Cogmind --------- Core Integrity 0/250 Matter 215/300 Energy 100/100 System Corruption 0% Temperature Cool (0) Movement Core (800) Ox15 Location -10/Subcaves Parts ------- > --- POWER (1) -------- (None) > --- PROPULSION (2) --- (None) > --- UTILITY (2) ------ High-capacity Storage Unit > --- WEAPON (2) ------- Assault Rifle Subdweller Machine Gun > --- INVENTORY (20) --- Light Ion Engine Light Ion Engine Arachnoskeleton Structural Scanner Improved Terrain Scanner Scrap Shield Hacking Suite Hacking Suite Subdweller Beam Cannon Battle Rifle Battle Rifle Subdweller Machine Gun Light Cannon Grenade Launcher Grenade Launcher Makeshift Spear Peak State ------------ > --- POWER ------------ Ion Engine > --- PROPULSION ------- Light Treads Spiked Treads > --- UTILITY ---------- High-capacity Storage Unit Propulsion Shielding > --- WEAPON ----------- Assault Rifle Makeshift Spear > --- INVENTORY -------- Light Ion Engine Light Ion Engine Arachnoskeleton Structural Scanner Improved Terrain Scanner Propulsion Shielding Scrap Shield Hacking Suite Hacking Suite Subdweller Beam Cannon Light Assault Rifle Battle Rifle Subdweller Machine Gun Subdweller Machine Gun Light Cannon Grenade Launcher Grenade Launcher [Rating: 16] Favorites ----------- Power Ion Engine Engine Ion Engine Propulsion Light Treads Treads Light Treads Utility High-capacity Storage Unit Storage High-capacity Storage Unit Protection Propulsion Shielding Weapon Medium Laser Energy Gun Medium Laser Ballistic Gun Assault Rifle Special Weapon Mining Laser Piercing Weapon Makeshift Spear Build | -11 -10 -10 ------- Run | Yrd Mat Sub Slots Evolved . | . . . Power . | . . . Propulsion . | . . . Utility . | . . . Weapon . | . . . Parts Attached 25 | 6 6 13 Power 5 | 1 2 2 Engine 5 | 1 2 2 Core . | . . . Reactor . | . . . Propulsion 5 | 2 . 3 Treads 5 | 2 . 3 Leg . | . . . Wheel . | . . . Hover . | . . . Flight . | . . . Utility 7 | 1 4 2 Device . | . . . Storage 2 | 1 1 . Processor . | . . . Hackware . | . . . Protection 5 | . 3 2 Artifact . | . . . Weapon 8 | 2 . 6 Energy Gun 2 | 2 . . Energy Cannon . | . . . Ballistic Gun 3 | . . 3 Ballistic Cannon . | . . . Launcher . | . . . Special Weapon 2 | . . 2 Impact Weapon . | . . . Slashing Weapon . | . . . Piercing Weapon 1 | . . 1 Special Melee Weapon . | . . . Unidentified Prototypes . | . . . Parts Lost 12 | . 3 9 Power 2 | . 1 1 Propulsion 4 | . . 4 Utility 5 | . 2 3 Weapon 1 | . . 1 Highest Loss Streak 5 | . 2 5 To Critical Strikes . | . . . Average Backups 15 | 1 11 18 Power 1 | . 1 2 Propulsion 1 | . 1 2 Utility 5 | . 4 5 Weapon 6 | . 3 8 Tool/Special . | . . . Unused Backups 22 | . 4 18 Power 3 | . 1 2 Propulsion 5 | . 2 3 Utility 6 | . 1 5 Weapon 8 | . . 8 Tool/Special . | . . . Average Slot Usage (%) 99 | . 98 99 Engine 13 | . 13 13 Treads 27 | . 28 27 Storage 14 | . 14 14 Protection 13 | . 12 13 Energy Gun 11 | . 28 7 Ballistic Gun 13 | . . 17 Piercing Weapon 1 | . . 2 Peak Build Rating 16 | 6 9 16 Average Rating 10 | 4 8 11 On Entrance 5 | . 6 9 Avg Prop Armor Cover (%) . | . . . Naked Turns . | . . . Heaviest Build 52 | 14 50 52 Greatest Support 40 | 40 40 40 Greatest Overweight (x) 2 | . 1 2 Average Overweight (x) . | . . 1 Largest Inventory Capacity 20 | 8 20 20 Average Capacity 19 | 7 19 20 Most Carried 20 | 4 19 20 Average Carried 16 | 1 11 19 Final Capacity 20 | 8 20 20 Final Carried 19 | 4 19 19 Class Distribution -------------------- 65% | Mutant 34% | Scavenger-Mutant Dominant Class ---------------- Mutant | -10/Materials Mutant | -10/Subcaves Resources | -11 -10 -10 ----------- Run | Yrd Mat Sub Matter Collected 562 | 260 70 232 Remotely . | . . . Salvage Created 939 | 53 701 185 Parts 65 | 8 46 11 Haulers Intercepted 2 | . 2 . Recyclers Shooed 2 | 1 1 . Parts Field Recycled . | . . . Retrieved Matter . | . . . Parts Self-Destructed 23 | . . 23 Prevented . | . . . Parts Restored . | . . . Kills | -11 -10 -10 ------- Run | Yrd Mat Sub Combat Hostiles Destroyed 16 | . 11 5 Guns 15 | . 10 5 Classes Destroyed 10 | 1 8 1 Worker 1 | . 1 . Builder 3 | . 3 . Tunneler 3 | 3 . . Hauler 2 | . 2 . Recycler 1 | . 1 . Operator 2 | . 2 . Watcher 1 | . 1 . Swarmer 3 | . 3 . Grunt 8 | . 8 . Subdweller 5 | . . 5 Best Kill Streak 5 | 1 5 2 Combat Bots Only 2 | . 2 2 Max Kills in Single Turn 1 | 1 1 1 Gunslinging . | . . . Exploded . | . . . Melee . | . . . Uniques/NPCs Destroyed . | . . . Combat | -11 -10 -10 -------- Run | Yrd Mat Sub Hostile Shots Fired 113 | . 57 56 Missed 24 | . 14 10 Hits 89 | . 43 46 Projectile 89 | . 43 46 Critical Strikes 3 | . . 3 Actively Blocked 2 | . . 2 Damage Taken 1642 | . 564 1078 Core 255 | . 42 213 Absorbed by Shields . | . . . Redirected to Shielding 230 | . 94 136 Core Remaining (%) 100 | 100 . . Volleys Fired 105 | 5 59 41 Largest 2 | 2 2 2 Hottest 150 | 100 100 150 Shots Fired 198 | 10 113 75 Gun 190 | 10 113 67 Cannon . | . . . Launcher . | . . . Special 8 | . . 8 Kinetic 47 | . . 47 Thermal 151 | 10 113 28 Explosive . | . . . Electromagnetic . | . . . Robot Hit Streak 9 | 3 8 9 Robot Miss Streak 4 | 2 4 1 Penetration Max . | . . . Secondary Targets 3 | . 1 2 Max Gunslinging Chain 1 | . 1 1 Shots Hit Robots 118 | 5 69 44 Core Hits 47 | 3 33 11 Critical Kills . | . . . Critical Parts Destroyed . | . . . Critical Strikes 8 | 1 6 1 Burn 7 | 1 6 . Destroy 1 | . . 1 Melee Attacks 12 | . . 12 Impact . | . . . Slashing . | . . . Piercing 12 | . . 12 Sneak Attacks . | . . . Combat Hostiles . | . . . Follow-up Attacks . | . . . Damage Inflicted 1837 | 64 1074 699 Guns 1661 | 62 900 699 Cannons . | . . . Explosions 171 | . 171 . Melee . | . . . Ramming 5 | 2 3 . Kinetic 562 | . . 562 Thermal 1270 | 62 1071 137 Explosive . | . . . Electromagnetic . | . . . Impact . | . . . Slashing . | . . . Piercing . | . . . Highest Corruption . | . . . Average Corruption . | . . . Corruption Purged . | . . . Corruption Blocked . | . . . Overload Shots . | . . . Overflow Damage 63 | . 63 . Projectiles . | . . . Explosions 63 | . 63 . Melee . | . . . Knockbacks . | . . . Impact . | . . . Kinetic . | . . . Secondary . | . . . Self-Inflicted Damage 99 | . 99 . Shots 1 | . 1 . Rammed 2 | 1 1 . Targets Rammed 2 | 1 1 . Kicked . | . . . Crushed . | . . . Highest Temperature 285 | 78 285 3 Average Temperature 79 | 28 84 3 Received Heat Transfer 294 | . 192 102 Effects 4 | . 4 . Interference 4 | . 4 . Siege Activations . | . . . Martial Activations . | . . . Shielding Activations . | . . . Robots Disrupted . | . . . Combat Hostiles . | . . . Robots Corrupted . | . . . Combat Hostiles . | . . . Parts Fried . | . . . Impact Corruptions . | . . . Robots Melted 1 | . 1 . Combat Hostiles 1 | . 1 . Parts Melted 11 | . 10 1 Heat Transferred 3874 | 259 3208 407 Parts Sabotaged . | . . . Parts Stolen . | . . . Parts Stripped . | . . . Power Chain Reactions . | . . . Alert | -11 -10 -10 ------- Run | Yrd Mat Sub Maximum Alert Level 1 | . 1 . Low Security (%) 83 | 100 78 . Level 1 16 | . 21 . Level 2 . | . . . Level 3 . | . . . Level 4 . | . . . Level 5 . | . . . High Security . | . . . Max Security . | . . . Peak Influence 233 | 5 233 . Initial . | . . . Average 99 | . 126 . Influence Increases 503 | 15 488 . Destroy 0b10 Robot/C 220 | . 220 . Destroy 0b10 Robot/NC 65 | 15 50 . Destroy Leader 46 | . 46 . Disable Machine 15 | . 15 . Destroy Structure 22 | . 22 . Lose Combat Pursuer 135 | . 135 . Influence Decreases 503 | 15 366 122 Entered New Map 59 | . . 59 Time Decay 414 | 15 336 63 Lost Part 30 | . 30 . Squads Dispatched 2 | . 2 . Investigation . | . . . Extermination . | . . . Reinforcement 2 | . 2 . Assault . | . . . Garrison . | . . . Intercept . | . . . Searches Triggered . | . . . Construction Impeded . | . . . Haulers Reinforced . | . . . Active Scanning Responses . | . . . Cargo Convoy Interrupts . | . . . Stealth | -11 -10 -10 --------- Run | Yrd Mat Sub Distress Signals 1 | . 1 . Communications Jammed . | . . . Distress Signals . | . . . Times Spotted 30 | . 24 6 Peak Tracking Total 4 | . 3 4 Tactical Retreats 8 | . 8 . Traps | -11 -10 -10 ------- Run | Yrd Mat Sub Traps Triggered 2 | . . 2 Indirectly . | . . . Trap Hack Attempts . | . . . Triggered . | . . . Disarmed . | . . . Reprogrammed . | . . . Reused . | . . . Traps Extracted . | . . . Installed . | . . . Triggered . | . . . Machines | -11 -10 -10 ---------- Run | Yrd Mat Sub Machines Disabled 2 | . 1 1 Max in Single Turn 1 | . 1 1 Machines Repaired . | . . . Machines Dismantled . | . . . Machines Sabotaged . | . . . Overloaded Fab Kills . | . . . Hacking | -11 -10 -10 --------- Run | Yrd Mat Sub Machines Accessed 1 | . . 1 Terminals . | . . . Fabricators . | . . . Repair Stations . | . . . Recycling Units . | . . . Scanalyzers . | . . . Garrison Access . | . . . Total Hacks 1 | . . 1 Successful 1 | . . 1 Failed . | . . . Catastrophic . | . . . Database Lockouts . | . . . Manual . | . . . Terminals . | . . . Fabricators . | . . . Repair Stations . | . . . Recycling Units . | . . . Scanalyzers . | . . . Garrison Access . | . . . Terminal Hacks 1 | . . 1 Proto ID Catalog 1 | . . 1 Fabricator Hacks . | . . . Repair Station Hacks . | . . . Recycling Unit Hacks . | . . . Scanalyzer . | . . . Garrison Access Hacks . | . . . Unauthorized Hacks . | . . . Terminals . | . . . Fabricators . | . . . Repair Stations . | . . . Recycling Units . | . . . Scanalyzers . | . . . Garrison Access . | . . . Data Cores Recovered . | . . . Used . | . . . Hacking Detections . | . . . Full Trace Events . | . . . Feedback Events . | . . . Feedback Blocked . | . . . Robot Schematics Acquired . | . . . Robots Built . | . . . Authchips . | . . . Time . | . . . Total Robot Build Rating . | . . . Part Schematics Acquired . | . . . Parts Built . | . . . Authchips . | . . . Time . | . . . Total Part Build Rating . | . . . Part Studies Acquired . | . . . Parts Repaired . | . . . Time . | . . . Parts Recycled . | . . . Recycled Matter . | . . . Retrieved Matter . | . . . Retrieved Components . | . . . Parts Scanalyzed . | . . . Part Schematics Acquired . | . . . Parts Damaged . | . . . Bothacking | -11 -10 -10 ------------ Run | Yrd Mat Sub Used RIF Installer . | . . . Robots Hacked . | . . . Non-combat . | . . . Combat . | . . . Robot Hacks Applied . | . . . Relay Couplers Released . | . . . Fabnet Peak Effective % . | . . . Robots Rewired . | . . . Allies Hacked . | . . . Hacks Repelled . | . . . Allies | -11 -10 -10 -------- Run | Yrd Mat Sub Total Allies . | . . . Largest Group . | . . . Highest-Rated Group . | . . . Highest-Rated Ally . | . . . Total Orders . | . . . Ally Attacks . | . . . Total Damage . | . . . Kills . | . . . Allies Corrupted . | . . . Allies Melted . | . . . Intel | -11 -10 -10 ------- Run | Yrd Mat Sub Active Infowar (turns) . | . . . Robot Analysis Total . | . . . Derelict Logs Recovered 2 | . . 2 Drone Launches . | . . . Drone Recoveries . | . . . Exploration | -11 -10 -10 ------------- Run | Yrd Mat Sub Turns Passed 4540 | 254 902 3384 Spaces Moved 1746 | 144 285 1317 Core 4 | 4 . . Treads 1742 | 140 285 1317 Legs . | . . . Wheels . | . . . Hover . | . . . Flight . | . . . Fastest Speed 50 | 50 160 240 Average Speed 232 | 156 229 240 Slowest Speed 320 | 160 240 320 Overloaded Moves . | . . . Propulsion Burnouts . | . . . Robots Hopped . | . . . Potential Cave-ins . | . . . Cave-ins Triggered . | . . . Exploration Rate (%) 34 | 6 38 60 Regions Visited 2 Branch Regions 1 Pre-discovered Areas . | . . . Known Exits Taken . | . . . Unknown Exits Taken 2 | 1 1 . Scrap Searched 6 | . . 6 Spaces Dug . | . . . Terrain Destroyed 19 | . 19 . Melee . | . . . Projectile . | . . . AOE 19 | . 19 . Terrain Rammed . | . . . Walls Destroyed . | . . . Machines Disabled . | . . . Actions | -11 -10 -10 --------- Run | Yrd Mat Sub Total 2001 | 159 419 1423 Wait 53 | . 44 9 Move 1744 | 143 284 1317 Hop . | . . . Pick Up 32 | 4 19 9 Fast Attach 10 | 6 3 1 Attach 8 | . 1 7 Detach 1 | . . 1 Swap 19 | . 3 16 Drop 15 | . 5 10 Fire 105 | 5 59 41 Melee 12 | . . 12 Ram . | . . . Kick . | . . . Crush 2 | 1 1 . Escape Stasis . | . . . Rewire . | . . . Trap . | . . . Miscellaneous . | . . . Route ------- -11/Scrapyard -10/Materials (discovered 2 exits: [*Mat] / *Sub) -10/Subcaves (discovered 1 exit: [*Mat]) History --------- Turn | Location | Event 2 | -11/Scrapyard | Met Revision 17 22 | -11/Scrapyard | Discovered new exit (range 16) 255 | -11/Scrapyard | Entered Materials 313 | -10/Materials | Build established: Mutant 1077 | -10/Materials | Discovered new exit (range 13) 1142 | -10/Materials | Discovered new exit (range 6) 1157 | -10/Materials | Entered Subcaves 1245 | -10/Subcaves | Shifting Twisted Machinery released Battle Rifle 1406 | -10/Subcaves | Shifting Twisted Machinery released Mak. Spear 1579 | -10/Subcaves | Learned Materials emergency access door positions 1655 | -10/Subcaves | Lost 3 parts (2n1w) 2433 | -10/Subcaves | Shifting Twisted Machinery released Flamer 2435 | -10/Subcaves | Shifting Twisted Machinery released Scrap Shield 3070 | -10/Subcaves | Build established: Scavenger-Mutant 3124 | -10/Subcaves | A swath of the cavern ceiling suddenly collapsed 3636 | -10/Subcaves | Visited 4L-MR0's lab 3642 | -10/Subcaves | Learned Materials terminal intel 3673 | -10/Subcaves | Found Arachnoskeleton 3899 | -10/Subcaves | Discovered new exit (range 9) 4506 | -10/Subcaves | Core integrity fell below 50% 4529 | -10/Subcaves | Core integrity fell below 20% 4541 | -10/Subcaves | Destroyed by U5-VJL(R) with Subdweller Machine Gun Last Messages --------------- 04407_ Dropped Lgt. Treads. 04411_ Subatomizers dissect the Sub. Laser. 04416_ Acquired 10 matter. 04421_ Subatomizers dissect the Sub. Laser. 04423_ Dropped Lgt. Assault Rifle. 04423_ Acquired Battle Rifle. 04435_ Subatomizers dissect the Sub. Laser. 04493_ Propulsion Shielding destroyed. 04500_ IF-02A(R) destroyed. 04509_ RK-PKD(R) affixes Scrap Shield Fragment to Scrap Shield. 04520_ Ion Engine destroyed. 04521_ RK-PKD(R) destroyed. 04521_ Switching to secondary target: 24-HH8(R). 04521_ 24-HH8(R) suffers critical hit (Destroy). 04522_ Propulsion Shielding destroyed. 04526_ Spk. Treads destroyed. 04528_ Lgt. Treads destroyed. 04530_ 24-HH8(R) destroyed. 04530_ Switching to secondary target: U5-VJL(R). 04536_ U5-VJL(R) affixes Scrap Shield Fragment to Scrap Shield. Map ----- +----------------------------------------------------+ | " "" "##??##|""######????## "" | | ##### " "" "#??#" ###?????????# "" | | ?#### """" ##??####???????????# | | ## " ##?????????????????# ### ### | | # #####??????????????????# #?### #?## | | #####??????????????????????## ##???#####??? | | #???????????????????????????#######???????????? | | # #?????????????????????????????????????????????? | | # #?##??????????????????????????????????????????? | | # ## #??????????????????????????????????????????? | | #??????????????????????????????????????????? | | #??????????????????????????????????????????? | | #??????????????????????????????????????????? | | #??????????????????????????????????????????? | | ##??????????????????????????????????????????? | | #???????????????????????????????????????????? | | ##???????????????????????????????????????????? | | ##????????????????????????????????????????????? | | ###?????????????????????????????????????????????? | | #???????????????????????????????????????????????? | | ##???????????????????????????????????????????????? | | ???????????????????????#####???? ##????????????? | | ???????????????????##### # ## #????????????? | | ##?????????????????# ## #????????????? | | ##????????????????# !%%## # #???????????? | | ##???????#####???# *R[@#??????????????????????? | | #??????## ###?# ###%##??????????????????????? | | ##???#### [ ### ###!#???????????????????????? | | #????# # # ## ?????? ????????????????? | | ###??# #[## ## # ????????????????? | | #?## ##%"## ## ???????????????? | | ### #"*="# #????????????????? | | # # #"%%"# #### #????????????????? | | ##""## ### ##???? ???????????????????? | | #### #??##??????#??????????????????? | | #### #?????????????????????????????? | | #####??###########?????????????????????????????? | | ##??????????????????????????????????????????????? | | ##??????????????????????????????????????????????? | | ###????????????????????????????????????????????? | | ##???????????????????????????????????????????? | | #???????????????????????????????????????????? | | ####????????????????????????????????????????? | | #????????????????????????????????????????? | | ## #????????????????????????????????????????? | | ##? #????????????????????????????????????????? | | ???# #????????????????????????????????????????? | | #### #????????????????????????????????????????? | | ##???????????????????????????????????????? | | #???????????????????????????????????????? | +----------------------------------------------------+ Best States ------------- Heat Dissipation 25 Energy Generation 15 Energy Capacity 250 Matter Stores 300 Matter Capacity 300 Sight Range 16 Terrain Scan Density 10 Propulsion Shielding 33 Evasion (%) 40 Recoil Reduction 2 Item Schematics ----------------- None Robot Schematics ------------------ None Fabricated ------------ Nothing Repaired ---------- Nothing Studied --------- None Alien Tech Used ----------------- None Achievements -------------- None Challenges ------------ None Game ------ Seed GrenadeNullSplitter Manual? 0 Play Time 00:15:48 Cumulative 59.2 hours Start 2026.02.10 @ 07:20:15 End 2026.02.10 @ 07:33:24 Sessions 1 Manual Loads 0 Difficulty Rogue Special Mode None Game No. 122 Rogue 122 Adventurer 0 Explorer 0 Win Type - Total 0 Types 0/0/0/0/0/0/0/0/0/0 Lore% 36 Gallery% 31 Achievement% 29 Wizard Run 0 Options --------- Layout 0 ASCII 0 Keyboard 1 Movement Arrows Keybinds 0 Fullscreen 1 Font 18/Smallcaps Map View 38x25 Zoom Use 77% Tactical HUD 1 Map Filters NONE Filters NONE Steam 1 RUN: 13879433-2582-43f0-b499-336db1d60c4e